{"text_format":"3","workbook":"xlsx","n_sheets":2,"sheets":["一、专业技术人员职业资格","二、技能人员职业资格"],"read":"whole","date_system":"1900"}

{"sheet":"一、专业技术人员职业资格","index":0,"n_rows":77,"n_cols":8,"rows_kept":77,"merged":[[0,0,0,1],[1,0,1,7],[2,0,2,7],[3,1,3,3],[4,1,4,3],[5,1,5,3],[6,1,6,3],[7,1,7,3],[8,1,8,3],[9,1,9,3],[10,1,10,3],[11,1,11,3],[12,1,12,3],[13,1,13,3],[14,1,14,3],[15,1,15,3],[16,1,16,3],[17,1,17,3],[18,0,27,0],[18,1,27,1],[18,2,18,3],[18,5,27,5],[19,2,19,3],[20,2,20,3],[20,4,22,4],[21,2,21,3],[22,2,22,3],[23,2,23,3],[24,2,24,3],[24,4,27,4],[25,2,25,3],[26,2,26,3],[27,2,27,3],[28,1,28,3],[29,1,29,3],[30,0,31,0],[30,1,31,1],[30,2,30,3],[30,4,31,4],[30,5,31,5],[31,2,31,3],[32,1,32,3],[33,1,33,3],[34,0,36,0],[34,1,36,1],[34,2,34,3],[34,4,36,4],[34,5,36,5],[35,2,35,3],[36,2,36,3],[37,1,37,3],[38,1,38,3],[39,1,39,3],[40,1,40,3],[41,1,41,3],[42,1,42,3],[43,1,43,3],[44,1,44,3],[45,1,45,3],[46,1,46,3],[47,1,47,3],[48,1,48,3],[49,0,52,0],[49,1,52,1],[49,2,49,3],[49,4,52,4],[49,5,52,5],[50,2,50,3],[51,2,51,3],[52,2,52,3],[53,1,53,3],[54,1,54,3],[55,1,55,3],[56,1,56,3],[57,1,57,3],[58,1,58,3],[59,1,59,3],[60,1,60,3],[61,1,61,3],[62,1,62,3],[63,1,63,3],[64,1,64,3],[65,1,65,3],[66,1,66,3],[67,1,67,3],[68,1,68,3],[69,1,69,3],[70,1,70,3],[71,1,71,3],[72,1,72,3],[73,1,73,3],[74,1,74,3],[75,1,75,3],[76,1,76,3]]}
["附件"]
["国家职业资格目录清单"]
["一、专业技术人员职业资格\n（共计58项。其中准入类34项，水平评价类24项）"]
["序号","职业资格名称",null,null,"实施部门\n（单位）","资格\n类别","设定依据","备注"]
[1,"教师资格",null,null,"教育部","准入类","《中华人民共和国教师法》\n《教师资格条例》（国务院令第188号）\n《〈教师资格条例〉实施办法》（教育部令2000年第10号）"]
[2,"注册消防工程师",null,null,"公安部、人力资源社会保障部","准入类","《中华人民共和国消防法》\n《注册消防工程师制度暂行规定》（人社部发〔2012〕56号）"]
[3,"法律职业资格",null,null,"司法部","准入类","《中华人民共和国律师法》\n《中华人民共和国法官法》\n《中华人民共和国检察官法》\n《中华人民共和国公证法》"]
[4,"中国委托公证人资格（香港、澳门）",null,null,"司法部","准入类","《国务院对确需保留的行政审批项目设定行政许可的决定》（国务院令第412号）"]
[5,"注册会计师",null,null,"财政部","准入类","《中华人民共和国注册会计师法》"]
[6,"民用核安全设备无损检验人员资格",null,null,"环境保护部","准入类","《民用核安全设备监督管理条例》（国务院令第500号）"]
[7,"民用核设施操纵人员资格",null,null,"环境保护部、国家能源局","准入类","《中华人民共和国民用核设施安全监督管理条例》"]
[8,"注册核安全工程师",null,null,"环境保护部、人力资源社会保障部","准入类","《中华人民共和国放射性污染防治法》\n《注册核安全工程师执业资格制度暂行规定》（人发〔2002〕106号）"]
[9,"注册建筑师",null,null,"全国注册建筑师管理委员会及省级注册建筑师管理委员会","准入类","《中华人民共和国建筑法》\n《中华人民共和国注册建筑师条例》（国务院令第184号）\n《建设部、人事部关于建立注册建筑师制度及有关工作的通知》（建设〔1994〕第598号）\n《建设工程勘察设计管理条例》（国务院令第293号）"]
[10,"监理工程师",null,null,"住房城乡建设部、交通运输部、水利部、人力资源社会保障部","准入类","《中华人民共和国建筑法》\n《建设工程质量管理条例》（国务院令第279号）\n《注册监理工程师管理规定》（建设部令2006年第147号）"]
[11,"房地产估价师",null,null,"住房城乡建设部、国土资源部、人力资源社会保障部","准入类","《中华人民共和国城市房地产管理法》\n《房地产估价师执业资格制度暂行规定》（建房〔1995〕147号）"]
[12,"造价工程师",null,null,"住房城乡建设部、交通运输部、水利部、人力资源社会保障部","准入类","《中华人民共和国建筑法》\n《造价工程师执业资格制度暂行规定》（人发〔1996〕77号）"]
[13,"注册城市规划师",null,null,"住房城乡建设部、人力资源社会保障部、中国城市规划协会","准入类","《中华人民共和国城乡规划法》\n《注册城市规划师执业资格制度暂行规定》（人发〔1999〕39号）"]
[14,"建造师",null,null,"住房城乡建设部、人力资源社会保障部","准入类","《中华人民共和国建筑法》\n《注册建造师管理规定》（建设部令2006年第153号）\n《建造师执业资格制度暂行规定》（人发〔2002〕111号）"]
[15,"勘察设计注册工程师","注册结构工程师",null,"住房城乡建设部、人力资源社会保障部","准入类","《中华人民共和国建筑法》《建设工程勘察设计管理条例》（国务院令第293号）\n《勘察设计注册工程师管理规定》（建设部令2005年第137号）\n《注册结构工程师执业资格制度暂行规定》（建设〔1997〕222号）"]
[null,null,"注册土木工程师",null,"住房城乡建设部、交通运输部、水利部、人力资源社会保障部",null,"《中华人民共和国建筑法》《建设工程勘察设计管理条例》（国务院令第293号）\n《勘察设计注册工程师管理规定》（建设部令2005年第137号）\n《注册土木工程师（岩土）执业资格制度暂行规定》（人发〔2002〕35号）\n《注册土木工程师（水利水电工程）制度暂行规定》（国人部发〔2005〕58号）\n《注册土木工程师（港口与航道工程）执业资格制度暂行规定》（人发〔2003〕27号）\n《勘察设计注册土木工程师（道路工程）制度暂行规定》（国人部发〔2007〕18号）"]
[null,null,"注册化工工程师",null,"住房城乡建设部、人力资源社会保障部",null,"《中华人民共和国建筑法》《建设工程勘察设计管理条例》（国务院令第293号）\n《勘察设计注册工程师管理规定》（建设部令2005年第137号）\n《注册化工工程师执业资格制度暂行规定》（人发〔2003〕26号）"]
[null,null,"注册电气工程师",{"$nulls":3},"《中华人民共和国建筑法》《建设工程勘察设计管理条例》（国务院令第293号）\n《勘察设计注册工程师管理规定》（建设部令2005年第137号）\n《注册电气工程师执业资格制度暂行规定》（人发〔2003〕25号）"]
[null,null,"注册公用设备工程师",{"$nulls":3},"《中华人民共和国建筑法》《建设工程勘察设计管理条例》（国务院令第293号）\n《勘察设计注册工程师管理规定》（建设部令2005年第137号）\n《注册公用设备工程师执业资格制度暂行规定》（人发〔2003〕24号）"]
[null,null,"注册环保工程师",null,"住房城乡建设部、环境保护部、人力资源社会保障部",null,"《中华人民共和国建筑法》《建设工程勘察设计管理条例》（国务院令第293号）\n《勘察设计注册工程师管理规定》（建设部令2005年第137号）\n《注册环保工程师制度暂行规定》（国人部发〔2005〕56号）"]
[null,null,"注册石油天然气工程师",null,"住房城乡建设部、人力资源社会保障部",null,"《中华人民共和国建筑法》《建设工程勘察设计管理条例》（国务院令第293号）\n《勘察设计注册工程师管理规定》（建设部令2005年第137号）\n《勘察设计注册石油天然气工程师制度暂行规定》（国人部发〔2005〕84号）"]
[null,null,"注册冶金工程师",{"$nulls":3},"《中华人民共和国建筑法》《建设工程勘察设计管理条例》（国务院令第293号）\n《勘察设计注册工程师管理规定》（建设部令2005年第137号）\n《勘察设计注册冶金工程师制度暂行规定》（国人部发〔2005〕85号）"]
[null,null,"注册采矿/矿物工程师",{"$nulls":3},"《中华人民共和国建筑法》《建设工程勘察设计管理条例》（国务院令第293号）\n《勘察设计注册工程师管理规定》（建设部令2005年第137号）\n《勘察设计注册采矿/矿物工程师制度暂行规定》（国人部发〔2005〕86号）"]
[null,null,"注册机械工程师",{"$nulls":3},"《中华人民共和国建筑法》《建设工程勘察设计管理条例》（国务院令第293号）\n《勘察设计注册工程师管理规定》（建设部令2005年第137号）\n《勘察设计注册机械工程师制度暂行规定》（国人部发〔2005〕87号）"]
[16,"注册验船师",null,null,"交通运输部、农业部、人力资源社会保障部","准入类","《中华人民共和国船舶和海上设施检验条例》（国务院令第109号）\n《中华人民共和国渔业船舶检验条例》（国务院令第383号）\n《注册验船师制度暂行规定》（国人部发〔2006〕8号）"]
[17,"船员资格（含船员、渔业船员）",null,null,"交通运输部、农业部","准入类","《中华人民共和国船员条例》（国务院令第494号）\n《中华人民共和国内河交通安全管理条例》（国务院令第355号）\n《中华人民共和国渔港水域交通安全管理条例》（国务院令第38号）"]
[18,"兽医资格","执业兽医",null,"农业部","准入类","《中华人民共和国动物防疫法》"]
[null,null,"乡村兽医",{"$nulls":3},"《中华人民共和国动物防疫法》\n《乡村兽医管理办法》（农业部令2008年第17号）"]
[19,"拍卖师",null,null,"商务部、人力资源社会保障部、中国拍卖行业协会","准入类","《中华人民共和国拍卖法》"]
[20,"演出经纪人员资格",null,null,"文化部","准入类","《营业性演出管理条例》（国务院令439号）\n《营业性演出管理条例实施细则》（文化部令2009年第47号）"]
[21,"医生资格","医师",null,"国家卫生计生委","准入类","《中华人民共和国执业医师法》"]
[null,null,"乡村医生",{"$nulls":3},"《乡村医生从业管理条例》（国务院令第386号）"]
[null,null,"人体器官移植医师",{"$nulls":3},"《中华人民共和国执业医师法》\n《人体器官移植条例》（国务院令第491号）\n《卫生部办公厅关于对人体器官移植技术临床应用规划及拟批准开展人体器官移植医疗机构和医师开展审定工作的通知》（卫办医发〔2007〕38号）\n《国务院关于取消和调整一批行政审批项目等事项的决定》（国发〔2014〕27号）"]
[22,"护士执业资格",null,null,"国家卫生计生委、人力资源社会保障部","准入类","《护士条例》（国务院令第517号）\n《护士执业资格考试办法》（卫生部、人力资源和社会保障部令2010年第74号）"]
[23,"母婴保健技术服务人员资格",null,null,"国家卫生计生委","准入类","《中华人民共和国母婴保健法》"]
[24,"出入境检疫处理人员资格",null,null,"质检总局","准入类","《进出境动植物检疫法实施条例》（国务院令第206号）"]
[25,"注册设备监理师",null,null,"质检总局、人力资源社会保障部","准入类","《国务院对确需保留的行政审批项目设定行政许可的决定》（国务院令第412号）\n《注册设备监理师执业资格制度暂行规定》（国人部发〔2003〕40号）"]
[26,"注册计量师",null,null,"质检总局、人力资源社会保障部","准入类","《中华人民共和国计量法》\n《注册计量师制度暂行规定》（国人部发〔2006〕40号）"]
[27,"广播电视播音员、主持人资格",null,null,"新闻出版广电总局","准入类","《国务院对确需保留的行政审批项目设定行政许可的决定》（国务院令第412号）"]
[28,"新闻记者职业资格",null,null,"新闻出版广电总局","准入类","《国务院对确需保留的行政审批项目设定行政许可的决定》（国务院令第412号）\n《新闻记者证管理办法》（新闻出版总署令2009年第44号）"]
[29,"注册安全工程师",null,null,"安全监管总局、人力资源社会保障部","准入类","《中华人民共和国安全生产法》\n《注册安全工程师执业资格制度暂行规定》（人发〔2002〕87号）"]
[30,"执业药师",null,null,"食品药品监管总局、人力资源社会保障部","准入类","《中华人民共和国药品管理法》\n《中华人民共和国药品管理法实施条例》（国务院令第360号）\n《药品经营质量管理规范》（国家食品药品监督管理总局令2015年第13号）\n《执业药师资格制度暂行规定》（人发〔1999〕34号）"]
[31,"专利代理人",null,null,"国家知识产权局","准入类","《专利代理条例》（国务院令第76号）"]
[32,"导游资格",null,null,"国家旅游局","准入类","《中华人民共和国旅游法》\n《导游人员管理条例》（国务院令第263号）"]
[33,"注册测绘师",null,null,"国家测绘地信局、人力资源社会保障部","准入类","《中华人民共和国测绘法》\n《注册测绘师制度暂行规定》（国人部发〔2007〕14号）"]
[34,"航空人员资格","空勤人员、地面人员",null,"中国民航局","准入类","《中华人民共和国民用航空法》"]
[null,null,"民用航空器外国驾驶员、领航员、飞行机械员、飞行通信员",{"$nulls":3},"《国务院对确需保留的行政审批项目设定行政许可的决定》（国务院令第412号）"]
[null,null,"航空安全员",{"$nulls":3},"《国务院对确需保留的行政审批项目设定行政许可的决定》（国务院令第412号）"]
[null,null,"民用航空电信人员、航行情报人员、气象人员",{"$nulls":3},"《国务院对确需保留的行政审批项目设定行政许可的决定》（国务院令第412号）"]
[35,"工程咨询（投资）专业技术人员职业资格",null,null,"国家发展改革委、人力资源社会保障部、中国工程咨询协会","水平\n评价类","《工程咨询（投资）专业技术人员职业资格制度暂行规定》（人社部发〔2015〕64号）"]
[36,"通信专业技术人员职业资格",null,null,"工业和信息化部、人力资源社会保障部","水平\n评价类","《中华人民共和国电信条例》（国务院令第291号）\n《通信专业技术人员职业水平评价暂行规定》（国人部发〔2006〕10号）"]
[37,"计算机技术与软件专业技术资格",null,null,"工业和信息化部、人力资源社会保障部","水平\n评价类","《计算机技术与软件专业技术资格（水平）考试暂行规定》（国人部发〔2003〕39号）"]
[38,"社会工作者职业资格",null,null,"民政部、人力资源社会保障部","水平\n评价类","《国家中长期人才发展规划纲要（2010-2020年)》（中发〔2010〕6号）\n《关于加强社会工作专业人才队伍建设的意见》（中组发〔2011〕25号）\n《社会工作者职业水平评价暂行规定》（国人发〔2006〕71号）"]
[39,"会计专业技术资格",null,null,"财政部、人力资源社会保障部","水平\n评价类","《中华人民共和国会计法》\n《会计专业职务试行条例》（职改字〔1986〕第55号）\n《会计专业技术资格考试暂行规定》（财会〔2000〕11号）"]
[40,"资产评估师",null,null,"财政部、人力资源社会保障部、中国资产评估协会","水平\n评价类","《中华人民共和国资产评估法》\n《资产评估师职业资格制度暂行规定》（人社部发〔2015〕43号）"]
[41,"经济专业技术资格",null,null,"人力资源社会保障部","水平\n评价类","《经济专业人员职务试行条例》（职改字〔1986〕第74号）\n《经济专业技术资格考试暂行规定》（人职发〔1993〕1号）"]
[42,"土地登记代理专业人员职业资格",null,null,"国土资源部、人力资源社会保障部、中国土地估价师与土地登记代理人协会","水平\n评价类","《不动产登记暂行条例》（国务院令第656号）\n《土地登记代理专业人员职业资格制度暂行规定》（人社部发〔2015〕66号）"]
[43,"环境影响评价工程师",null,null,"环境保护部、人力资源社会保障部","水平\n评价类","《建设项目环境保护管理条例》（国务院令第253号）\n《环境影响评价工程师职业资格制度暂行规定》（国人部发〔2004〕13号）"]
[44,"房地产经纪专业人员职业资格",null,null,"住房城乡建设部、人力资源社会保障部、中国房地产估价师与房地产经纪人学会","水平\n评价类","《中华人民共和国城市房地产管理法》\n《房地产经纪专业人员职业资格制度暂行规定》（人社部发〔2015〕47号）"]
[45,"机动车检测维修专业技术人员职业资格",null,null,"交通运输部、人力资源社会保障部","水平\n评价类","《中华人民共和国道路运输条例》（国务院令第628号）\n《机动车检测维修专业技术人员职业水平评价暂行规定》（国人部发〔2006〕51号）"]
[46,"公路水运工程试验检测专业技术人员职业资格",null,null,"交通运输部、人力资源社会保障部","水平\n评价类","《建设工程质量管理条例》（国务院令第279号）\n《公路水运工程试验检测专业技术人员职业资格制度规定》（人社部发〔2015〕59号）"]
[47,"水利工程质量检测员资格",null,null,"水利部","水平\n评价类","《建设工程质量管理条例》（国务院令第279号）\n《水利工程质量检测管理规定》（水利部令2008年第36号）"]
[48,"卫生专业技术资格",null,null,"国家卫生计生委、人力资源社会保障部","水平\n评价类","《卫生技术人员职务试行条例》（职改字〔1986〕第20号）\n《关于加强卫生专业技术职务评聘工作的通知》（人发〔2000〕114号）\n《临床医学专业技术资格考试暂行规定》（卫人发〔2000〕462号）\n《预防医学、全科医学、药学、护理、其他卫生技术等专业技术资格考试暂行规定》（卫人发〔2001〕164号）"]
[49,"审计专业技术资格",null,null,"审计署、人力资源社会保障部","水平\n评价类","《中华人民共和国审计法》\n《中华人民共和国审计法实施条例》（国务院令第231号）\n《审计专业技术初、中级资格考试规定》（审人发〔2003〕4号）\n《高级审计师评价办法（试行）》（人发〔2002〕58号）"]
[50,"税务师",null,null,"税务总局、人力资源社会保障部、中国注册税务师协会","水平\n评价类","《中华人民共和国税收征收管理法》\n《税务师职业资格制度暂行规定》（人社部发〔2015〕90号）"]
[51,"认证人员职业资格",null,null,"质检总局","水平\n评价类","《中华人民共和国认证认可条例》（国务院令第390号）"]
[52,"出版专业技术人员职业资格",null,null,"新闻出版广电总局、人力资源社会保障部","水平\n评价类","《出版管理条例》（国务院令第343号）\n《音像制品管理条例》（国务院令第341号）\n《出版专业人员职务试行条例》（职改字〔1986〕第41号）\n《出版专业技术人员职业资格考试暂行规定》（人发〔2001〕86号）"]
[53,"统计专业技术资格",null,null,"国家统计局、人力资源社会保障部","水平\n评价类","《统计专业职务试行条例》（职改字〔1986〕第57号）\n《统计专业技术资格考试暂行规定》（人职发〔1993〕1号）\n《关于印发高级统计师资格评价办法（试行）的通知》（人社部发〔2011〕90号）"]
[54,"银行业专业人员职业资格",null,null,"银监会、人力资源社会保障部、中国银行业协会","水平\n评价类","《银行业专业人员职业资格制度暂行规定》（人社部发〔2013〕101号）"]
[55,"证券业从业人员资格",null,null,"证监会","水平\n评价类","《中华人民共和国证券法》"]
[56,"期货从业人员资格",null,null,"证监会","水平\n评价类","《期货交易管理条例》（国务院令第489号）"]
[57,"文物保护工程从业资格",null,null,"国家文物局","水平\n评价类","《中华人民共和国文物保护法实施条例》（国务院令第377号）\n《文物保护工程管理办法》（文化部令2003年第26号）\n《文物保护工程勘察设计资质管理办法》（文物保发〔2014〕13号）\n《文物保护工程施工资质管理办法》（文物保发〔2014〕13号）"]
[58,"翻译专业资格",null,null,"中国外文局、人力资源社会保障部","水平\n评价类","《翻译专业职务试行条例》（职改字〔1986〕第54号）\n《翻译专业资格（水平）考试暂行规定》（人发〔2003〕21号）"]

{"sheet":"二、技能人员职业资格","index":1,"n_rows":147,"n_cols":7,"rows_kept":147,"merged":[[0,0,0,6],[1,1,1,2],[2,1,2,2],[3,0,4,0],[3,1,4,2],[3,4,4,4],[3,6,4,6],[5,1,5,2],[6,0,7,0],[6,1,7,1],[6,4,7,4],[9,0,10,0],[9,1,10,1],[9,3,10,3],[9,4,10,4],[9,6,10,6],[12,0,14,0],[12,1,14,1],[12,4,14,4],[12,6,14,6],[15,0,20,0],[15,1,20,1],[15,4,20,4],[15,5,17,5],[15,6,20,6],[16,3,18,3],[21,0,22,0],[21,1,22,1],[21,4,22,4],[21,6,22,6],[24,0,27,0],[24,1,27,1],[24,4,27,4],[24,6,27,6],[28,0,29,0],[28,1,29,1],[28,3,29,3],[28,4,29,4],[28,5,29,5],[28,6,29,6],[30,0,31,0],[30,1,31,1],[30,4,31,4],[30,6,31,6],[32,0,34,0],[32,1,34,1],[32,4,34,4],[32,6,34,6],[35,0,38,0],[35,1,38,1],[35,3,37,3],[35,4,38,4],[35,6,38,6],[52,0,53,0],[52,1,53,1],[52,4,53,4],[52,6,53,6],[55,0,56,0],[55,1,56,1],[55,4,56,4],[55,6,56,6],[71,0,73,0],[71,1,73,1],[71,3,72,3],[71,4,73,4],[71,6,73,6],[74,0,75,0],[74,1,75,1],[74,3,75,3],[74,4,75,4],[74,5,75,5],[74,6,75,6],[83,0,86,0],[83,1,86,1],[83,3,85,3],[83,4,86,4],[83,6,86,6],[91,0,93,0],[91,1,93,1],[91,3,92,3],[91,4,93,4],[91,6,93,6],[97,0,99,0],[97,1,99,1],[97,3,98,3],[97,4,99,4],[97,6,99,6],[101,0,102,0],[101,1,102,1],[101,3,102,3],[101,4,102,4],[101,6,102,6],[104,0,105,0],[104,1,105,1],[104,4,105,4],[104,6,105,6],[107,0,108,0],[107,1,108,1],[107,3,108,3],[107,4,108,4],[107,6,108,6],[109,0,112,0],[109,1,112,1],[109,4,112,4],[109,6,112,6],[110,3,112,3],[119,0,122,0],[119,1,122,1],[119,3,122,3],[119,4,122,4],[119,6,122,6],[120,5,122,5],[123,0,126,0],[123,1,126,1],[123,4,126,4],[123,6,126,6],[124,5,125,5],[127,0,128,0],[127,1,128,1],[127,4,128,4],[127,5,128,5],[127,6,128,6],[129,0,130,0],[129,1,130,1],[129,3,130,3],[129,4,130,4],[129,5,130,5],[129,6,130,6],[131,0,134,0],[131,1,134,1],[131,4,134,4],[131,6,134,6],[133,3,134,3],[135,0,136,0],[135,1,136,1],[135,3,136,3],[135,4,136,4],[141,0,142,0],[141,1,142,1],[141,4,142,4],[141,6,142,6]]}
["二、技能人员职业资格\n（共计93项。其中准入类8项，水平评价类85项）"]
["序号","职业资格名称",null,"实施部门\n（单位）","资格\n类别","设定依据","备注"]
[1,"消防设施操作员",null,"消防行业技能鉴定机构","准入类","《中华人民共和国消防法》"]
[{"$f":"COUNT($A$3:A3)+1","v":2},"焊工",null,"人社部门技能鉴定机构","准入类","《中华人民共和国消防法》"]
[{"$nulls":3},"环境保护部（民用核安全设备焊工、焊接操作工）",null,"《民用核安全设备监督管理条例》（国务院令第500号）\n《国务院关于修改部分行政法规的决定》（国务院令第666号）\n《国务院对确需保留的行政审批项目设定行政许可的决定》（国务院令第412号）"]
[{"$f":"COUNT($A$3:A5)+1","v":3},"家畜繁殖员",null,"农业行业技能鉴定机构","准入类","《中华人民共和国畜牧法》"]
[{"$f":"COUNT($A$3:A6)+1","v":4},"关于健身和娱乐场所服务人员","游泳救生员","体育行业技能鉴定机构","准入类","《全民健身条例》（国务院令第560号公布，国务院令第638号修改）"]
[null,null,"社会体育指导员（游泳、滑雪、潜水、攀岩）","体育行业技能鉴定机构",null,"《全民健身条例》（国务院令第560号公布，国务院令第638号修改）\n《第一批高危险性体育项目目录公告》（国家体育总局公告第16号）","除游泳、滑雪、潜水、攀岩等高危险性体育项目外的社会体育指导员，为水平评价类"]
[{"$f":"COUNT($A$3:A7)+1","v":5},"关于航空运输服务人员","民航乘务员、机场运行指挥员","民航行业技能鉴定机构","准入类","《关于印发民航乘务员等2个国家职业标准的通知》（劳社厅发〔2006〕27号）、《关于印发第十九批矿山救护工等22个国家职业标准的通知》（劳社厅发〔2008〕6号）"]
[{"$f":"COUNT($A$3:A9)+1","v":6},"关于道路运输服务人员","道路客运汽车驾驶员、道路货运汽车驾驶员","交通运输行业技能鉴定机构","准入类","《关于印发第三批国家职业标准的通知》（劳社厅发〔2002〕1号）"]
[null,null,"机动车驾驶教练员",null,null,"《关于印发机动车驾驶教练员国家职业技能标准的通知》（人社厅发〔2011〕26号）"]
[{"$f":"COUNT($A$3:A11)+1","v":7},"关于轨道交通运输服务人员","轨道列车司机","交通运输、铁路行业技能鉴定机构","准入类","《关于印发客车检车员等10个国家职业标准的通知》（劳社厅发〔2005〕11号）、《关于印发第十九批矿山救护工等22个国家职业标准的通知》（劳社厅发〔2008〕6号）"]
[{"$f":"COUNT($A$3:A12)+1","v":8},"关于消防和应急救援人员","消防员","消防行业技能鉴定机构","准入类","《关于印发灭火救援员国家职业技能标准的通知》（人社厅发〔2011〕18号）"]
[null,null,"森林消防员","林业行业技能鉴定机构",null,"《关于印发第十二批房地产策划师等54个国家职业标准的通知》（劳社厅发〔2006〕1号）"]
[null,null,"应急救援员","紧急救援行业技能鉴定机构",null,"《关于印发紧急救助员等6个国家职业技能标准的通知》（人社厅发〔2012〕54号）"]
[{"$f":"COUNT($A$3:A15)+1","v":9},"关于机械设备修理人员","设备点检员","冶金行业技能鉴定机构","水平\n评价类","《关于印发船舶管系工等42个国家职业技能标准的通知》（人社厅发〔2009〕66号）"]
[null,null,"机修钳工","人社部门技能鉴定机构会同有关行业协会"]
[null,null,"电工"]
[null,null,"仪器仪表维修工",null,null,"《关于印发防腐蚀工等22个国家职业标准的通知》（劳社厅发〔2001〕3号）"]
[null,null,"锅炉设备检修工、变电设备检修工","电力行业技能鉴定机构",null,"《关于印发防腐蚀工等22个国家职业标准的通知》（劳社厅发〔2001〕3号）、《关于印发第十五批模具设计师等65个国家职业标准的通知》（劳社厅发〔2006〕33号）"]
[null,null,"工程机械维修工","机械行业技能鉴定机构",null,"《关于印发平版制版工等23个国家职业技能标准的通知》（人社厅发〔2010〕39号）"]
[{"$f":"COUNT($A$3:A21)+1","v":10},"关于通用工程机械操作人员","起重装卸机械操作工","交通运输行业技能鉴定机构、人社部门技能鉴定机构会同有关行业协会","水平\n评价类","《关于印发列车值班员等65个国家职业（工种）标准的通知》（劳社厅发〔2007〕14号）"]
[null,null,"起重工","人社部门技能鉴定机构会同有关行业协会",null,"《关于印发第五批国家职业标准的通知》（劳社厅发〔2003〕1号）"]
[{"$f":"COUNT($A$3:A22)+1","v":11},"关于建筑安装施工人员","电梯安装维修工、制冷空调系统安装维修工、锅炉设备安装工","人社部门技能鉴定机构会同有关行业协会","水平\n评价类","《关于印发组合机床操作工等28个国家职业标准的通知》（劳社厅发〔2000〕14号）、《关于印发防腐蚀工等22个国家职业标准的通知》（劳社厅发〔2001〕3号）、《关于印发第八批林木种苗工等65个国家职业标准的通知》（劳社厅发〔2004〕1号）"]
[{"$f":"COUNT($A$3:A24)+1","v":12},"关于土木工程建筑施工人员","筑路工、桥隧工","交通运输行业技能鉴定机构","水平\n评价类","《关于印发客车检车员等10个国家职业标准的通知》（劳社厅发〔2005〕11号）、《关于印发汽车运输调度员等8个国家职业标准的通知》（劳社厅发〔2007〕27号）"]
[null,null,"防水工","人社部门技能鉴定机构会同有关行业协会",null,"《关于印发手工木工等8个国家职业技能标准的通知》（人社厅发〔2011〕129号）"]
[null,null,"水工建构筑物维护检修工","交通运输、电力行业技能鉴定机构",null,"《关于印发汽车运输调度员等8个国家职业标准的通知》（劳社厅发〔2007〕27号）"]
[null,null,"电力电缆安装运维工","电力行业技能鉴定机构",null,"《关于印发第十五批模具设计师等65个国家职业标准的通知》（劳社厅发〔2006〕33号）"]
[{"$f":"COUNT($A$3:A28)+1","v":13},"关于房屋建筑施工人员","砌筑工、混凝土工、钢筋工","人社部门技能鉴定机构会同有关行业协会","水平\n评价类","《关于印发手工木工等8个国家职业技能标准的通知》（人社厅发〔2011〕129号）"]
[null,null,"架子工"]
[{"$f":"COUNT($A$3:A30)+1","v":14},"关于水生产、输排和水处理人员","水生产处理工","海洋、化工、电力行业技能鉴定机构","水平\n评价类","《关于印发养老护理员等四个国家职业技能标准的通知》（人社厅发〔2011〕104号）"]
[null,null,"工业废水处理工","化工行业技能鉴定机构",null,"《关于印发紧急救助员等6个国家职业技能标准的通知》（人社厅发〔2012〕54号）"]
[{"$f":"COUNT($A$3:A32)+1","v":15},"关于气体生产、处理和输送人员","工业气体生产工","化工行业技能鉴定机构","水平\n评价类","《关于印发第十批玩具设计师等68个国家职业标准的通知》（劳社厅发〔2005〕1号）"]
[null,null,"工业废气治理工","化工、电力行业技能鉴定机构",null,"《关于印发紧急救助员等6个国家职业技能标准的通知》（人社厅发〔2012〕54号）"]
[null,null,"压缩机操作工","化工、煤炭行业技能鉴定机构",null,"《关于印发第十批玩具设计师等68个国家职业标准的通知》（劳社厅发〔2005〕1号）"]
[{"$f":"COUNT($A$3:A35)+1","v":16},"关于电力、热力生产和供应人员","锅炉运行值班员、发电集控值班员、变配电运行值班员、继电保护员","电力行业技能鉴定机构","水平\n评价类","《关于印发第十五批模具设计师等65个国家职业标准的通知》（劳社厅发〔2006〕33号）"]
[null,null,"燃气轮机值班员",null,null,"《关于印发船舶管系工等42个国家职业技能标准的通知》（人社厅发〔2009〕66号）"]
[null,null,"余热余压利用系统操作工",null,null,"《关于印发皮革护理员等5个国家职业技能标准的通知》（人社厅发〔2010〕96号）"]
[null,null,"锅炉操作工","人社部门技能鉴定机构会同有关行业协会",null,"《关于印发组合机床操作工等28个国家职业标准的通知》（劳社厅发〔2000〕14号）"]
[{"$f":"COUNT($A$3:A39)+1","v":17},"关于仪器仪表装配人员","钟表及计时仪器制造工","轻工行业技能鉴定机构","水平\n评价类","《关于印发第十批玩具设计师等68个国家职业标准的通知》（劳社厅发〔2005〕1号）"]
[{"$f":"COUNT($A$3:A40)+1","v":18},"关于电子设备装配调试人员","广电和通信设备电子装接工、广电和通信设备调试工","电子通信行业技能鉴定机构","水平\n评价类","《关于印发液晶显示器件制造工等10个国家职业标准的通知》（劳社厅发〔2005〕2号）"]
[{"$f":"COUNT($A$3:A41)+1","v":19},"关于计算机制造人员","计算机及外部设备装配调试员","电子通信行业技能鉴定机构","水平\n评价类","《关于印发液晶显示器件制造工等10个国家职业标准的通知》（劳社厅发〔2005〕2号）"]
[{"$f":"COUNT($A$3:A42)+1","v":20},"关于电子器件制造人员","液晶显示器件制造工、半导体芯片制造工、半导体分立器件和集成电路装调工","电子通信行业技能鉴定机构","水平\n评价类","《关于印发半导体芯片制造工等13个国家职业标准的通知》（劳社厅发〔2003〕2号）、《关于印发通信设备检验员和液晶显示器件制造工国家职业技能标准的通知》（人社厅发〔2011〕35号）"]
[{"$f":"COUNT($A$3:A43)+1","v":21},"关于电子元件制造人员","电子产品制版工、印制电路制作工","电子通信行业技能鉴定机构","水平\n评价类","《关于印发半导体芯片制造工等13个国家职业标准的通知》（劳社厅发〔2003〕2号）"]
[{"$f":"COUNT($A$3:A44)+1","v":22},"关于电线电缆、光纤光缆及电工器材制造人员","电线电缆制造工","机械行业技能鉴定机构","水平\n评价类","《关于印发防腐蚀工等22个国家职业标准的通知》（劳社厅发〔2001〕3号）"]
[{"$f":"COUNT($A$3:A45)+1","v":23},"关于输配电及控制设备制造人员","变压器互感器制造工、高低压电器及成套设备装配工","机械行业技能鉴定机构","水平\n评价类","《关于印发第三批国家职业标准的通知》（劳社厅发〔2002〕1号）、《关于印发第九批国家职业标准的通知》（劳社厅发〔2004〕7号）"]
[{"$f":"COUNT($A$3:A46)+1","v":24},"关于汽车整车制造人员","汽车装调工","机械行业技能鉴定机构","水平\n评价类","《关于印发第十批玩具设计师等68个国家职业标准的通知》（劳社厅发〔2005〕1号）"]
[{"$f":"COUNT($A$3:A47)+1","v":25},"关于医疗器械制品和康复辅具生产人员","矫形器装配工、假肢装配工","民政行业技能鉴定机构","水平\n评价类","《关于印发假肢师等8个国家职业标准的通知》（劳社厅发〔2006〕8号）"]
[{"$f":"COUNT($A$3:A48)+1","v":26},"关于金属加工机械制造人员","机床装调维修工","人社部门技能鉴定机构会同有关行业协会","水平\n评价类","《关于印发第十五批模具设计师等65个国家职业标准的通知》（劳社厅发〔2006〕33号）"]
[{"$f":"COUNT($A$3:A49)+1","v":27},"关于通用基础件装配制造人员","装配钳工","人社部门技能鉴定机构会同有关行业协会","水平\n评价类","《关于印发船舶管系工等42个国家职业技能标准的通知》（人社厅发〔2009〕66号）"]
[{"$f":"COUNT($A$3:A50)+1","v":28},"关于工装工具制造加工人员","模具工、工具钳工","人社部门技能鉴定机构会同有关行业协会","水平\n评价类","《关于印发船舶管系工等42个国家职业技能标准的通知》（人社厅发〔2009〕66号）、《人力资源社会保障部办公厅关于印发锁具修理工等5个国家职业技能标准的通知》（人社厅发〔2012〕114号）"]
[{"$f":"COUNT($A$3:A51)+1","v":29},"关于机械热加工人员","铸造工、锻造工、金属热处理工","人社部门技能鉴定机构会同有关行业协会","水平\n评价类","《关于印发船舶管系工等42个国家职业技能标准的通知》（人社厅发〔2009〕66号）"]
[{"$f":"COUNT($A$3:A52)+1","v":30},"关于机械冷加工人员","车工、铣工、磨工、镗工、多工序数控机床操作调整工、冲压工","人社部门技能鉴定机构会同有关行业协会","水平\n评价类","《关于印发组合机床操作工等28个国家职业标准的通知》（劳社厅发〔2000〕14号）、《关于印发第三批国家职业标准的通知》（劳社厅发〔2002〕1号）、《关于印发第十批玩具设计师等68个国家职业标准的通知》（劳社厅发〔2005〕1号）、《关于印发船舶管系工等42个国家职业技能标准的通知》（人社厅发〔2009〕66号）"]
[null,null,"电切削工","机械行业技能鉴定机构、人社部门技能鉴定机构会同有关行业协会",null,"《关于印发第十二批房地产策划师等54个国家职业标准的通知》（劳社厅发〔2006〕1号）"]
[{"$f":"COUNT($A$3:A53)+1","v":31},"关于硬质合金生产人员","硬质合金成型工、硬质合金烧结工、硬质合金精加工工","有色金属行业技能鉴定机构","水平\n评价类","《关于印发第八批林木种苗工等65个国家职业标准的通知》（劳社厅发〔2004〕1号）"]
[{"$f":"COUNT($A$3:A55)+1","v":32},"关于金属轧制人员","轧制原料工、金属轧制工、金属材热处理工、金属材精整工","冶金、有色金属行业技能鉴定机构","水平\n评价类","《关于印发高炉原料工等27个工种国家职业标准的通知》（人社厅发〔2008〕71号）"]
[null,null,"金属挤压工、铸轧工","有色金属行业技能鉴定机构",null,"《关于印发第十五批模具设计师等65个国家职业标准的通知》（劳社厅发〔2006〕33号）"]
[{"$f":"COUNT($A$3:A57)+1","v":33},"关于轻有色金属冶炼人员","氧化铝制取工、铝电解工","有色金属行业技能鉴定机构","水平\n评价类","《关于印发第八批林木种苗工等65个国家职业标准的通知》（劳社厅发〔2004〕1号）"]
[{"$f":"COUNT($A$3:A58)+1","v":34},"关于重有色金属冶炼人员","重冶火法冶炼工、重冶湿法冶炼工、电解精炼工","有色金属行业技能鉴定机构","水平\n评价类","《关于印发第八批林木种苗工等65个国家职业标准的通知》（劳社厅发〔2004〕1号）、《关于印发第九批国家职业标准的通知》（劳社厅发〔2004〕7号）"]
[{"$f":"COUNT($A$3:A59)+1","v":35},"关于炼钢人员","炼钢原料工、炼钢工","冶金行业技能鉴定机构","水平\n评价类","《关于印发高炉原料工等27个工种国家职业标准的通知》（人社厅发〔2008〕71号）"]
[{"$f":"COUNT($A$3:A60)+1","v":36},"关于炼铁人员","高炉原料工、高炉炼铁工、高炉运转工","冶金行业技能鉴定机构","水平\n评价类","《关于印发高炉原料工等27个工种国家职业标准的通知》（人社厅发〔2008〕71号）"]
[{"$f":"COUNT($A$3:A61)+1","v":37},"关于矿物采选人员","井下支护工、矿山救护工","有色金属、煤炭、冶金行业技能鉴定机构","水平\n评价类","《关于印发第十六批汽车加气站操作工等10个国家职业标准的通知》（劳社厅发〔2007〕3号）、《关于印发第十九批矿山救护工等22个国家职业标准的通知》（劳社厅发〔2008〕6号）"]
[{"$f":"COUNT($A$3:A62)+1","v":38},"关于陶瓷制品制造人员","陶瓷原料准备工、陶瓷烧成工、陶瓷装饰工","轻工、建材行业技能鉴定机构","水平\n评价类","《关于印发第八批林木种苗工等65个国家职业标准的通知》（劳社厅发〔2004〕1号）"]
[{"$f":"COUNT($A$3:A63)+1","v":39},"关于玻璃纤维及玻璃纤维增强塑料制品制造人员","玻璃纤维及制品工、玻璃钢制品工","建材行业技能鉴定机构","水平\n评价类","《关于印发第十批玩具设计师等68个国家职业标准的通知》（劳社厅发〔2005〕1号）、《关于印发防腐蚀工等17个国家职业技能标准的通知》（人社厅发〔2009〕90号）"]
[{"$f":"COUNT($A$3:A64)+1","v":40},"关于水泥、石灰、石膏及其制品制造人员","水泥生产工、水泥混凝土制品工、石膏制品生产工","建材行业技能鉴定机构","水平\n评价类","《关于印发第八批林木种苗工等65个国家职业标准的通知》（劳社厅发〔2004〕1号）、《关于印发第十批玩具设计师等68个国家职业标准的通知》（劳社厅发〔2005〕1号）"]
[{"$f":"COUNT($A$3:A65)+1","v":41},"关于药物制剂人员","药物制剂工","中医药行业技能鉴定机构","水平\n评价类","《关于印发中药调剂员等5个国家职业技能标准的通知》（人社厅发〔2009〕94号）"]
[{"$f":"COUNT($A$3:A66)+1","v":42},"关于中药饮片加工人员","中药炮制工","中医药行业技能鉴定机构","水平\n评价类","《关于印发中药炮制与配制工国家职业技能标准的通知》（人社厅发〔2011〕94号）"]
[{"$f":"COUNT($A$3:A67)+1","v":43},"关于涂料、油墨、颜料及类似产品制造人员","涂料生产工、染料生产工","化工行业技能鉴定机构","水平\n评价类","《关于印发第十二批房地产策划师等54个国家职业标准的通知》（劳社厅发〔2006〕1号）"]
[{"$f":"COUNT($A$3:A68)+1","v":44},"关于农药生产人员","农药生产工","化工行业技能鉴定机构","水平\n评价类","《关于印发第十五批模具设计师等65个国家职业标准的通知》（劳社厅发〔2006〕33号）"]
[{"$f":"COUNT($A$3:A69)+1","v":45},"关于化学肥料生产人员","合成氨生产工、尿素生产工","化工行业技能鉴定机构","水平\n评价类","《关于印发第六批国家职业标准的通知》（劳社厅发〔2003〕14号）"]
[{"$f":"COUNT($A$3:A70)+1","v":46},"关于基础化学原料制造人员","硫酸生产工、硝酸生产工、纯碱生产工、烧碱生产工、无机化学反应生产工、有机合成工","化工行业技能鉴定机构","水平\n评价类","《关于印发第十批玩具设计师等68个国家职业标准的通知》（劳社厅发〔2005〕1号）、《关于印发第十二批房地产策划师等54个国家职业标准的通知》（劳社厅发〔2006〕1号）、《关于印发第十五批模具设计师等65个国家职业标准的通知》（劳社厅发〔2006〕33号）"]
[{"$f":"COUNT($A$3:A71)+1","v":47},"关于化工产品生产通用工艺人员","化工总控工","化工行业技能鉴定机构","水平\n评价类","《关于印发第十批玩具设计师等68个国家职业标准的通知》（劳社厅发〔2005〕1号）"]
[null,null,"防腐蚀工",null,null,"《关于印发防腐蚀工等17个国家职业技能标准的通知》（人社厅发〔2009〕90号）"]
[null,null,"制冷工","人社部门技能鉴定机构会同有关行业协会",null,"《关于印发船舶管系工等42个国家职业技能标准的通知》（人社厅发〔2009〕66号）"]
[{"$f":"COUNT($A$3:A74)+1","v":48},"关于炼焦人员","炼焦煤制备工","煤炭、冶金行业技能鉴定机构","水平\n评价类","《关于印发高炉原料工等27个工种国家职业标准的通知》（人社厅发〔2008〕71号）、《关于印发防腐蚀工等17个国家职业技能标准的通知》（人社厅发〔2009〕90号）"]
[null,null,"炼焦工"]
[{"$f":"COUNT($A$3:A76)+1","v":49},"关于工艺美术品制作人员","景泰蓝制作工","轻工行业技能鉴定机构","水平\n评价类","《关于印发第八批林木种苗工等65个国家职业标准的通知》（劳社厅发〔2004〕1号）"]
[{"$f":"COUNT($A$3:A77)+1","v":50},"关于木制品制造人员","手工木工","人社部门技能鉴定机构会同有关行业协会","水平\n评价类","《关于印发手工木工等8个国家职业技能标准的通知》（人社厅发〔2011〕129号）"]
[{"$f":"COUNT($A$3:A78)+1","v":51},"关于纺织品和服装剪裁缝纫人员","服装制版师","纺织行业技能鉴定机构","水平\n评价类","《关于印发第五批国家职业标准的通知》（劳社厅发〔2003〕1号）"]
[{"$f":"COUNT($A$3:A79)+1","v":52},"关于印染人员","印染前处理工、纺织染色工、印花工、印染后整理工、印染染化料配制工","纺织行业技能鉴定机构","水平\n评价类","《关于印发第十批玩具设计师等68个国家职业标准的通知》（劳社厅发〔2005〕1号）、《关于印发第十二批房地产策划师等54个国家职业标准的通知》（劳社厅发〔2006〕1号）"]
[{"$f":"COUNT($A$3:A80)+1","v":53},"关于织造人员","整经工、织布工","纺织行业技能鉴定机构","水平\n评价类","《关于印发第十批玩具设计师等68个国家职业标准的通知》（劳社厅发〔2005〕1号）"]
[{"$f":"COUNT($A$3:A81)+1","v":54},"关于纺纱人员","纺纱工、缫丝工","纺织行业技能鉴定机构","水平\n评价类","《关于印发第十批玩具设计师等68个国家职业标准的通知》（劳社厅发〔2005〕1号）、《关于印发第十二批房地产策划师等54个国家职业标准的通知》（劳社厅发〔2006〕1号）"]
[{"$f":"COUNT($A$3:A82)+1","v":55},"关于纤维预处理人员","纺织纤维梳理工、并条工、粗纱工","纺织行业技能鉴定机构","水平\n评价类","《关于印发第十批玩具设计师等68个国家职业标准的通知》（劳社厅发〔2005〕1号）"]
[{"$f":"COUNT($A$3:A83)+1","v":56},"关于酒、饮料及精制茶制造人员","酿酒师","轻工行业技能鉴定机构","水平\n评价类","《关于印发第十八批平版印刷工等20个国家职业标准的通知》（劳社厅发〔2008〕5号）"]
[null,null,"酒精酿造工、白酒酿造工、啤酒酿造工、黄酒酿造工、果露酒酿造工",null,null,"《关于印发第五批国家职业标准的通知》（劳社厅发〔2003〕1号）"]
[null,null,"品酒师",null,null,"《关于印发第十八批平版印刷工等20个国家职业标准的通知》（劳社厅发〔2008〕5号）"]
[null,null,"评茶员","供销行业技能鉴定机构、人社部门技能鉴定机构会同有关行业协会",null,"《关于印发防腐蚀工等22个国家职业标准的通知》（劳社厅发〔2001〕3号）"]
[{"$f":"COUNT($A$3:A87)+1","v":57},"关于乳制品加工人员","乳品评鉴师","轻工行业技能鉴定机构","水平\n评价类","《关于印发防腐蚀工等17个国家职业技能标准的通知》（人社厅发〔2009〕90号）"]
[{"$f":"COUNT($A$3:A88)+1","v":58},"关于粮油加工人员","制米工、制粉工、制油工","粮食行业技能鉴定机构","水平\n评价类","《关于印发粮油竞价交易员等7个国家职业标准的通知》（劳社厅发〔2005〕10号）"]
[{"$f":"COUNT($A$3:A89)+1","v":59},"关于农机化服务人员","农机驾驶操作员、农机修理工","农业行业技能鉴定机构","水平\n评价类","《关于印发蔬菜园艺工等14个国家职业标准的通知》（劳社厅发〔2004〕3号）、《关于印发农情测报员等4个国家职业技能标准的通知》（人社厅发〔2011〕88号）"]
[{"$f":"COUNT($A$3:A90)+1","v":60},"关于农村能源利用人员","沼气工","农业行业技能鉴定机构","水平\n评价类","《关于印发农业实验工等7个国家职业技能标准的通知》（人社厅发〔2010〕89号）"]
[{"$f":"COUNT($A$3:A91)+1","v":61},"关于动植物疫病防治人员","农作物植保员","农业行业技能鉴定机构","水平\n评价类","《关于印发农作物种子繁育员等17个国家职业标准的通知》（劳社厅发〔2003〕3号）"]
[null,null,"动物疫病防治员、动物检疫检验员、水生物病害防治员",null,null,"《关于印发果树园艺工等4个国家职业技能标准的通知》（人社厅发〔2009〕99号）、《关于印发农业实验工等7个国家职业技能标准的通知》（人社厅发〔2010〕89号）"]
[null,null,"林业有害生物防治员","林业行业技能鉴定机构",null,"《人力资源社会保障部办公厅 国家林业局办公室关于印发森林抚育工等11个国家职业技能标准的通知》（人社厅发〔2015〕12号）"]
[{"$f":"COUNT($A$3:A94)+1","v":62},"关于农业生产服务人员","农业技术员","农业行业技能鉴定机构","水平\n评价类","《关于印发农业技术指导员等5个国家职业标准的通知》（劳社厅发〔2007〕4号）"]
[{"$f":"COUNT($A$3:A95)+1","v":63},"关于畜禽种苗繁育人员","家禽繁殖员","农业行业技能鉴定机构","水平\n评价类","《关于印发农业技术指导员等5个国家职业标准的通知》（劳社厅发〔2007〕4号）"]
[{"$f":"COUNT($A$3:A96)+1","v":64},"关于作物种子(苗)繁育生产人员","种子繁育员、种苗繁育员","农业行业技能鉴定机构","水平\n评价类","《关于印发农作物种子繁育员等17个国家职业标准的通知》（劳社厅发〔2003〕3号）"]
[{"$f":"COUNT($A$3:A97)+1","v":65},"关于康复矫正服务人员","助听器验配师","卫生行业技能鉴定机构","水平\n评价类","《关于印发第十七批铝制品制作工等26个国家职业标准的通知》（劳社厅发〔2008〕1号）"]
[null,null,"口腔修复体制作工",null,null,"《关于印发反射疗法师等3个国家职业标准的通知》（劳社厅发〔2007〕11号）"]
[null,null,"眼镜验光员、眼镜定配工","人社部门技能鉴定机构会同有关行业协会",null,"《关于印发第十五批模具设计师等65个国家职业标准的通知》（劳社厅发〔2006〕33号）"]
[{"$f":"COUNT($A$3:A98)+1","v":66},"关于健康咨询服务人员","生殖健康咨询师","计生行业技能鉴定机构","水平\n评价类","《关于印发第十七批铝制品制作工等26个国家职业标准的通知》（劳社厅发〔2008〕1号）"]
[{"$f":"COUNT($A$3:A101)+1","v":67},"关于日用产品修理服务人员","锁具修理工","人社部门技能鉴定机构会同有关行业协会","水平\n评价类","《人力资源社会保障部办公厅关于印发锁具修理工等5个国家职业技能标准的通知》（人社厅发〔2012〕114号）"]
[null,null,"燃气具安装维修工",null,null,"《关于印发船舶管系工等42个国家职业技能标准的通知》（人社厅发〔2009〕66号）"]
[{"$f":"COUNT($A$3:A103)+1","v":68},"关于计算机和办公设备维修人员","信息通信网络终端维修员","电子通信行业技能鉴定机构","水平\n评价类","《关于印发线务员等4个国家职业技能标准的通知》（人社厅发〔2009〕78号）"]
[{"$f":"COUNT($A$3:A104)+1","v":69},"关于汽车摩托车修理技术服务人员","汽车维修工","交通运输行业技能鉴定机构、人社部门技能鉴定机构会同有关行业协会","水平\n评价类","《人力资源社会保障部办公厅关于印发中式烹调师等4个国家职业技能标准的通知》（人社厅发〔2014〕62号）"]
[null,null,"摩托车修理工","人社部门技能鉴定机构会同有关行业协会",null,"《关于印发第三批国家职业标准的通知》（劳社厅发〔2002〕1号）"]
[{"$f":"COUNT($A$3:A106)+1","v":70},"关于保健服务人员","保健调理师","中医药行业技能鉴定机构","水平\n评价类","《关于印发第七批速录师等14个国家职业标准的通知》（劳社厅发〔2003〕19号）、《关于印发中药调剂员等5个国家职业技能标准的通知》（人社厅发〔2009〕94号）"]
[{"$f":"COUNT($A$3:A107)+1","v":71},"关于美容美发服务人员","美容师","人社部门技能鉴定机构会同有关行业协会","水平\n评价类","《关于印发第九批国家职业标准的通知》（劳社厅发〔2004〕7号）"]
[null,null,"美发师",null,null,"《关于印发船舶管系工等42个国家职业技能标准的通知》（人社厅发〔2009〕66号）"]
[{"$f":"COUNT($A$3:A109)+1","v":72},"关于生活照料服务人员","孤残儿童护理员","民政行业技能鉴定机构","水平\n评价类","《关于印发孤残儿童护理员和灾害信息员国家职业标准的通知》（劳社厅发〔2007〕26号）"]
[null,null,"育婴员","人社部门技能鉴定机构会同有关行业协会",null,"《关于印发平版制版工等23个国家职业技能标准的通知》（人社厅发〔2010〕39号）"]
[null,null,"保育员",null,null,"《关于印发船舶管系工等42个国家职业技能标准的通知》（人社厅发〔2009〕66号）"]
[null,null,"养老护理员",null,null,"《关于印发养老护理员等四个国家职业技能标准的通知》（人社厅发〔2011〕104号）"]
[{"$f":"COUNT($A$3:A113)+1","v":73},"关于有害生物防制人员","有害生物防制员","卫生行业技能鉴定机构、人社部门技能鉴定机构会同有关行业协会","水平\n评价类","《关于印发第十批玩具设计师等68个国家职业标准的通知》（劳社厅发〔2005〕1号）"]
[{"$f":"COUNT($A$3:A114)+1","v":74},"关于环境治理服务人员","工业固体废物处理处置工","化工行业技能鉴定机构","水平\n评价类","《关于印发紧急救助员等6个国家职业技能标准的通知》（人社厅发〔2012〕54号）"]
[{"$f":"COUNT($A$3:A115)+1","v":75},"关于野生动植物保护人员","野生动物保护员、野生植物保护员","林业行业技能鉴定机构","水平\n评价类","《人力资源社会保障部办公厅 国家林业局办公室关于印发森林抚育工等11个国家职业技能标准的通知》（人社厅发〔2015〕12号）"]
[{"$f":"COUNT($A$3:A116)+1","v":76},"关于自然保护区和草地监护人员","自然保护区巡护监测员","林业行业技能鉴定机构","水平\n评价类","《关于印发第十二批房地产策划师等54个国家职业标准的通知》（劳社厅发〔2006〕1号）"]
[{"$f":"COUNT($A$3:A117)+1","v":77},"关于水文服务人员","水文勘测工","水利行业技能鉴定机构","水平\n评价类","《关于印发河道修防工等6个职业（工种）国家职业技能标准的通知》（人社厅发〔2009〕69号）"]
[{"$f":"COUNT($A$3:A118)+1","v":78},"关于水利设施管养人员","河道修防工、水工监测工、水工闸门运行工","水利行业技能鉴定机构","水平\n评价类","《关于印发河道修防工等6个职业（工种）国家职业技能标准的通知》（人社厅发〔2009〕69号）、《关于印发水工监测工等3个国家职业技能标准的通知》（人社厅发〔2010〕108号）"]
[{"$f":"COUNT($A$3:A119)+1","v":79},"关于地质勘查人员","地勘钻探工、地质调查员","国土资源行业技能鉴定机构","水平\n评价类","《关于印发海洋环境监测工等6个国家职业标准的通知》（劳社厅发〔2008〕4号）、《关于印发地质测量工等6个国家职业标准的通知》（劳社厅发〔2008〕7号）"]
[null,null,"地勘掘进工",null,null,"《关于印发掘进工等7个国家职业技能标准的通知》（人社厅发〔2010〕61号）"]
[null,null,"地质实验员"]
[null,null,"物探工"]
[{"$f":"COUNT($A$3:A122)+1","v":80},"关于检验、检测和计量服务人员","农产品食品检验员","农业、质检、粮食行业技能鉴定机构","水平\n评价类","《关于印发第三批国家职业标准的通知》（劳社厅发〔2002〕1号）、《关于印发农作物种子繁育员等17个国家职业标准的通知》（劳社厅发〔2003〕3号）、《关于印发粮油竞价交易员等7个国家职业标准的通知》（劳社厅发〔2005〕10号）、《人力资源社会保障部办公厅 农业部办公厅关于印发啤酒花生产工等9个国家职业技能标准的通知》（人社厅发〔2015〕5号）"]
[null,null,"纤维检验员","质检、供销行业技能鉴定机构",null,"《关于印发第三批国家职业标准的通知》（劳社厅发〔2002〕1号）"]
[null,null,"贵金属首饰与宝玉石检测员","质检、轻工、珠宝首饰行业技能鉴定机构"]
[null,null,"机动车检测工","机械、交通运输行业技能鉴定机构",null,"《关于印发第十批玩具设计师等68个国家职业标准的通知》（劳社厅发〔2005〕1号）、《关于印发汽车客运服务员等5个国家职业技能标准的通知》（人社厅发〔2009〕76号）"]
[{"$f":"COUNT($A$3:A127)+1","v":81},"关于测绘服务人员","大地测量员、摄影测量员、地图绘制员、不动产测绘员","测绘地理信息行业技能鉴定机构","水平\n评价类","《关于印发第五批国家职业标准的通知》（劳社厅发〔2003〕1号）、《关于印发大地测量员等5个国家职业标准的通知》（劳社厅发〔2006〕23号）"]
[null,null,"工程测量员","测绘地理信息、国土资源行业技能鉴定机构"]
[{"$f":"COUNT($A$3:A128)+1","v":82},"关于海洋服务人员","海洋水文气象观测员","海洋行业技能鉴定机构","水平\n评价类","《关于印发海洋环境监测工等6个国家职业标准的通知》（劳社厅发〔2008〕4号）"]
[null,null,"海洋浮标工、海洋水文调查员、海洋生物调查员"]
[{"$f":"COUNT($A$3:A131)+1","v":83},"关于安全保护服务人员","保安员","公安行业技能鉴定机构、人社部门技能鉴定机构会同有关行业协会","水平\n评价类","《人力资源社会保障部办公厅 公安部办公厅关于印发保安员国家职业技能标准的通知》（人社厅发〔2014〕88号）"]
[null,null,"安检员","民航行业技能鉴定机构、人社部门技能鉴定机构会同有关行业协会",null,"《关于印发民航安全检查员国家职业标准的通知》（劳社厅发〔2005〕6号）"]
[null,null,"智能楼宇管理员","人社部门技能鉴定机构会同有关行业协会",null,"《关于印发第十二批房地产策划师等54个国家职业标准的通知》（劳社厅发〔2006〕1号）"]
[null,null,"安全评价师",null,null,"《关于印发第十八批平版印刷工等20个国家职业标准的通知》（劳社厅发〔2008〕5号）"]
[{"$f":"COUNT($A$3:A135)+1","v":84},"关于人力资源服务人员","职业指导员","人社部门技能鉴定机构会同有关行业协会","水平\n评价类","《关于印发第十批玩具设计师等68个国家职业标准的通知》（劳社厅发〔2005〕1号）"]
[null,null,"企业人力资源管理师",null,null,"《关于印发第十六批汽车加气站操作工等10个国家职业标准的通知》（劳社厅发〔2007〕3号）"]
[{"$f":"COUNT($A$3:A136)+1","v":85},"关于物业管理服务人员","中央空调系统运行操作员","人社部门技能鉴定机构会同有关行业协会","水平\n评价类","《关于印发第五批国家职业标准的通知》（劳社厅发〔2003〕1号）"]
[{"$f":"COUNT($A$3:A138)+1","v":86},"关于软件和信息技术服务人员","计算机程序设计员、计算机软件测试员","电子通信行业技能鉴定机构、人社部门技能鉴定机构会同有关行业协会","水平\n评价类","《关于印发接插件制造工等5个国家职业标准的通知》（劳社厅发〔2006〕5号）、《关于印发第十八批平版印刷工等20个国家职业标准的通知》（劳社厅发〔2008〕5号）"]
[{"$f":"COUNT($A$3:A139)+1","v":87},"关于信息通信网络运行管理人员","信息通信网络运行管理员","电子通信行业技能鉴定机构","水平\n评价类","《关于印发第十八批平版印刷工等20个国家职业标准的通知》（劳社厅发〔2008〕5号）、《关于印发电信业务营业员等四个国家职业技能标准的通知》（人社厅发〔2011〕114号）"]
[{"$f":"COUNT($A$3:A140)+1","v":88},"关于广播电视传输服务人员","广播电视天线工、有线广播电视机线员","广电行业技能鉴定机构","水平\n评价类","《关于印发有线广播电视机线员国家职业标准的通知》（劳社厅发〔2006〕3号）、《关于印发广播电视天线工和电影放映员国家职业技能标准的通知》（人社厅发〔2011〕15号）"]
[{"$f":"COUNT($A$3:A141)+1","v":89},"关于信息通信网络维护人员","信息通信网络机务员","电子通信、电力行业技能鉴定机构","水平\n评价类","《关于印发电信业务营业员等四个国家职业技能标准的通知》（人社厅发〔2011〕114号）"]
[null,null,"信息通信网络线务员","电子通信行业技能鉴定机构",null,"《关于印发线务员等4个国家职业技能标准的通知》（人社厅发〔2009〕78号）"]
[{"$f":"COUNT($A$3:A143)+1","v":90},"关于餐饮服务人员","中式烹调师、中式面点师、西式烹调师、西式面点师","人社部门技能鉴定机构会同有关行业协会","水平\n评价类","《关于印发平版制版工等23个国家职业技能标准的通知》（人社厅发〔2010〕39号）、《人力资源社会保障部办公厅关于印发中式烹调师等4个国家职业技能标准的通知》（人社厅发〔2014〕62号）"]
[{"$f":"COUNT($A$3:A144)+1","v":91},"关于仓储人员","（粮油）仓储管理员","粮食行业技能鉴定机构","水平\n评价类","《关于印发粮油竞价交易员等7个国家职业标准的通知》（劳社厅发〔2005〕10号）"]
[{"$f":"COUNT($A$3:A145)+1","v":92},"关于销售人员","电子商务师","人社部门技能鉴定机构会同有关行业协会","水平\n评价类","《关于印发第十一批采购师等10个国家职业标准的通知》（劳社厅发〔2005〕7号）"]
[{"$f":"COUNT($A$3:A146)+1","v":93},"关于社会工作专业人员","心理咨询师","人社部门技能鉴定机构会同有关行业协会","水平\n评价类","《关于印发第十一批采购师等10个国家职业标准的通知》（劳社厅发〔2005〕7号）"]